bitfinex/quotes_ETHUSD_20250329
["timestamp","ask_amount","ask_price","bid_price","bid_amount"]
[1743271743151,5.48337,1823.7,1823.3,7.04588]
[1743271743352,3.0,1823.8,1823.5,5.48379]
[1743271743564,8.48321,1823.8,1823.4,5.48426]
[1743271744179,8.48321,1823.8,1823.3,7.04596]
[1743271744384,5.48339,1823.7,1823.3,7.750556]
[1743271744684,8.48335,1823.8,1823.4,5.48406]
[1743271744880,5.48335,1823.8,1823.4,10.96807]
[1743271745083,5.48335,1823.8,1823.4,5.48401]
[1743271745273,5.48335,1823.8,1823.4,6.8074736]
[1743271745473,5.48328,1823.8,1823.4,1.3234636]
[1743271745999,5.48336,1823.7,1823.4,1.3234636]
[1743271746691,0.55,1823.8,1823.0,42.28214]
[1743271746844,5.48436,1823.4,1823.0,42.2821]
[1743271747046,5.48471,1823.3,1823.0,7.7628]
[1743271747453,5.48426,1823.4,1823.0,7.7628]
[1743271747654,8.48416,1823.5,1823.0,9.087652]
[1743271747871,8.48436,1823.4,1823.0,14.573112]
[1743271748079,5.48477,1823.3,1823.0,7.7628]
[1743271748276,8.48343,1823.7,1823.1,0.05484784]
[1743271748490,5.48333,1823.8,1823.1,0.05484784]
[1743271748491,5.48333,1823.8,1823.4,5.48414]
[1743271748674,3.0,1823.8,1823.5,5.48376]
[1743271748981,5.69546,1823.9,1823.5,6.58055]
[1743271748982,5.48276,1823.9,1823.5,6.58055]
[1743271749194,11.0885238,1824.2,1824.0,5.48234]
[1743271749195,1.21735962,1824.2,1824.0,5.48234]
[1743271749345,1.21735962,1824.2,1823.7,7.02811]
[1743271749683,5.48288,1823.9,1823.5,7.8548]
[1743271749855,5.48288,1823.9,1823.5,13.33859]
[1743271750059,5.48334,1823.8,1823.5,7.8548]
[1743271750393,8.48289,1823.9,1823.5,14.12395]
[1743271750555,5.48321,1823.8,1823.5,8.64028]
[1743271750950,5.48348,1823.7,1823.5,7.8548]
[1743271751146,5.48348,1823.7,1823.5,6.31]
[1743271751374,5.48332,1823.8,1823.4,5.48413]
[1743271751573,10.9666,1823.8,1823.3,5.48429]
[1743271751750,5.48342,1823.7,1823.3,5.48429]
[1743271751948,3.0,1824.1,1823.7,5.48326]
[1743271752250,5.48194,1824.2,1823.8,1.5448]
[1743271752656,5.48226,1824.1,1823.8,1.5448]
[1743271752955,5.48185,1824.2,1823.8,1.5448]
[1743271753577,3.2127,1824.4,1823.8,1.5448]
[1743271753874,3.0,1824.2,1823.8,7.0277]
[1743271754075,8.48155,1824.3,1823.8,7.0277]
[1743271754276,5.48137,1824.4,1823.9,5.48246]
[1743271754479,3.0,1824.3,1824.0,5.48233]
[1743271755077,5.481,1824.5,1824.1,5.53692591]
[1743271755271,5.48157,1824.3,1823.9,5.48274]
[1743271755473,5.48157,1824.3,1823.9,6.185494]
[1743271755671,5.48157,1824.3,1823.9,11.667954]
[1743271755854,8.48151,1824.4,1824.0,5.48242]
[1743271756055,8.48151,1824.4,1824.0,5.48224]
[1743271756250,13.96299,1824.4,1824.0,5.48224]
[1743271756884,8.48148,1824.4,1824.0,6.6490134]
[1743271757082,13.96294,1824.4,1824.0,6.6490134]
[1743271757382,8.48146,1824.4,1824.0,6.6490134]
[1743271757563,13.96294,1824.4,1824.0,6.6490134]
[1743271757764,8.48146,1824.4,1824.0,6.6490134]
[1743271758166,5.48168,1824.3,1824.0,1.1667734]
[1743271758665,5.48168,1824.3,1823.9,10.96531]
[1743271759084,5.48168,1824.3,1823.9,10.96512]
[1743271759291,8.48146,1824.4,1823.8,1.5448]
[1743271759292,3.0,1824.4,1824.1,5.48214]
[1743271759597,8.48126,1824.4,1824.1,0.05481471]
[1743271759951,8.48126,1824.4,1824.0,5.48231]
[1743271760889,8.4814,1824.4,1824.0,5.48231]
[1743271761068,8.4814,1824.4,1824.0,12.061113]
[1743271761390,8.4814,1824.4,1824.0,6.578803]
[1743271761589,8.4814,1824.4,1824.0,12.061063]
[1743271761769,13.96286,1824.4,1824.0,6.578763]
[1743271761969,8.4814,1824.4,1824.0,5.48226]
[1743271762591,3.0,1824.4,1823.8,1.5448]
[1743271762892,5.48379,1823.6,1823.2,7.7974]
[1743271763191,5.48365,1823.6,1823.2,13.28224]
[1743271763372,3.66698625,1823.7,1823.4,5.48421]
[1743271763566,3.0,1823.7,1823.4,5.48421]
[1743271763768,3.0,1823.7,1823.3,6.812604]
[1743271763993,5.48367,1823.6,1823.3,1.328224]
[1743271764695,5.48366,1823.6,1823.2,1.5754]
[1743271765007,5.48369,1823.6,1823.2,7.0601]
[1743271765172,3.0,1823.8,1823.2,7.0601]
[1743271765173,8.48307,1823.8,1823.4,5.48408]
[1743271765487,8.48247,1824.0,1823.6,5.48351]
[1743271765693,13.96516,1824.0,1823.6,5.48346]
[1743271765872,13.96516,1824.0,1823.6,7.201899]
[1743271766068,3.0,1824.0,1823.7,5.48334]
[1743271766511,8.48248,1824.0,1823.6,8.777469]
[1743271766687,8.48248,1824.0,1823.6,3.293839]
[1743271766864,8.48306,1823.8,1823.6,1.5754]
[1743271767486,13.96632,1823.8,1823.6,1.5754]
[1743271767674,8.48306,1823.8,1823.6,1.5754]
[1743271768589,3.0,1823.8,1823.6,1.5754]
[1743271768794,3.0,1823.9,1823.6,7.05901]
[1743271768992,3.0,1823.9,1823.6,8.935003]
[1743271769993,3.0,1823.9,1823.6,8.98983202]
[1743271770167,5.48253,1824.0,1823.6,8.98974202]
[1743271770363,5.48246,1824.0,1823.7,5.48311]
[1743271770568,5.48246,1824.0,1823.8,0.548311]
[1743271770768,5.48216,1824.1,1823.7,5.48311]
[1743271770970,5.48246,1824.0,1823.7,5.48311]
[1743271771173,5.48246,1824.0,1823.7,5.53793691]
[1743271771374,5.4826,1824.0,1823.7,0.05482691]
[1743271771598,5.4826,1824.0,1823.7,5.53808691]
[1743271771797,5.4826,1824.0,1823.7,6.9853969]
[1743271772003,5.4826,1824.0,1823.7,1.5021369]
[1743271772695,10.96452,1824.1,1823.7,6.9853869]
[1743271772874,10.96448,1824.1,1823.7,6.9853469]
[1743271773072,5.48215,1824.1,1823.7,6.9853469]
[1743271773399,5.48109,1824.5,1824.1,5.48197]
[1743271773600,5.48143,1824.4,1824.0,7.05784]
[1743271773772,5.48169,1824.3,1824.0,7.7924]
[1743271775374,10.96353,1824.3,1824.0,7.7924]
[1743271775574,5.48189,1824.2,1824.0,7.7924]
[1743271775798,10.96396,1824.2,1823.8,6.18148469]
[1743271775968,10.96396,1824.2,1823.9,0.61814847]
[1743271775969,5.48222,1824.1,1823.9,0.61814847]
[1743271776175,5.48189,1824.2,1823.9,0.61814847]
[1743271776505,17.62934625,1824.5,1824.1,5.48215]
[1743271776676,17.62924625,1824.5,1824.1,5.48215]
[1743271776877,5.48129,1824.4,1824.1,5.48215]
[1743271777077,5.48129,1824.4,1824.0,5.4822]
[1743271777289,5.48129,1824.4,1824.1,0.54822]
[1743271777509,5.48129,1824.4,1824.1,0.60303518]
[1743271777805,10.96273,1824.4,1824.1,0.54822]
[1743271778010,5.48129,1824.4,1824.1,0.54822]
[1743271778177,5.48129,1824.4,1824.1,6.08517518]
[1743271778374,17.62908625,1824.5,1824.1,6.08517518]
[1743271778909,17.62908625,1824.5,1824.1,6.03036]
[1743271779106,5.48129,1824.4,1824.1,0.54822]
[1743271779308,5.48219,1824.1,1823.8,7.721]
[1743271779608,5.48198,1824.2,1823.8,13.20394]
[1743271780208,3.0,1824.2,1823.8,7.721]
[1743271780510,5.48228,1824.1,1823.8,7.721]
[1743271780709,5.48252,1824.0,1823.8,7.721]
[1743271781106,8.4808,1824.6,1824.2,5.48181]
[1743271781314,3.0,1824.6,1824.3,5.48141]
[1743271781492,3.0,1824.6,1824.2,5.48185]
[1743271782112,5.48105,1824.5,1824.1,5.48206]
[1743271782316,5.48105,1824.5,1824.1,6.578487]
[1743271782810,3.0,1824.4,1824.1,6.578487]
[1743271786013,3.0,1824.2,1823.8,2.970139]
[1743271786192,5.48245,1824.0,1823.8,1.505]
[1743271786393,5.48238,1824.1,1823.8,1.505]
[1743271786692,3.0,1824.2,1823.9,5.48264]
[1743271786887,3.0,1824.2,1823.9,10.96522]
[1743271787081,3.0,1824.2,1823.8,1.505]
[1743271787082,3.0,1824.2,1823.8,6.98797]
[1743271787309,8.48205,1824.2,1823.9,5.48274]
[1743271787615,13.9641,1824.2,1823.8,8.2351]
[1743271787812,8.48205,1824.2,1823.8,8.23498]
[1743271788118,13.96409,1824.2,1823.8,8.23498]
[1743271788321,8.48204,1824.2,1823.8,13.71783]
[1743271788484,8.48204,1824.2,1823.8,8.23498]
[1743271788811,5.48232,1824.1,1823.8,2.75213]
[1743271789205,10.96469,1824.1,1823.8,2.75213]
[1743271789406,5.48232,1824.1,1823.7,5.48319]
[1743271790216,5.48294,1823.9,1823.6,1.5643]
[1743271790522,5.48294,1823.9,1823.5,6.215]
[1743271790523,5.48328,1823.8,1823.5,6.215]
[1743271791089,5.48339,1823.7,1823.5,6.215]
[1743271791295,5.48339,1823.7,1823.4,6.215]
[1743271791596,5.48339,1823.7,1823.4,7.43978911]
[1743271791904,5.48349,1823.7,1823.4,7.384953]
[1743271792221,5.48377,1823.6,1823.4,7.384953]
[1743271792816,10.96764,1823.6,1823.4,7.384953]
[1743271793114,5.48336,1823.7,1823.3,5.48439]
[1743271793318,5.48336,1823.7,1823.3,5.53922642]
[1743271793491,5.48336,1823.7,1823.3,5.53922612]
[1743271793818,5.48336,1823.7,1823.3,5.48439]
[1743271793819,10.96691,1823.7,1823.3,5.48439]
[1743271794023,5.48367,1823.6,1823.3,1.874853]
[1743271794330,5.48338,1823.7,1823.3,5.53927643]
[1743271794534,5.48338,1823.7,1823.3,5.48444]
[1743271794694,5.69039,1823.8,1823.4,5.53882614]
[1743271794891,5.48339,1823.7,1823.4,5.53882614]
[1743271795096,0.2073,1824.1,1823.8,5.48284]
[1743271795326,5.48225,1824.1,1823.8,5.48284]
[1743271795830,5.48217,1824.1,1823.8,5.53766287]
[1743271796036,5.48217,1824.1,1823.8,5.48284]
[1743271796231,5.48217,1824.1,1823.8,6.652624]
[1743271796905,10.96456,1824.1,1823.8,1.169784]
[1743271797297,5.48196,1824.2,1823.8,12.19039687]
[1743271797496,5.48196,1824.2,1823.8,12.135574]
[1743271797802,5.48191,1824.2,1823.9,5.53751258]
[1743271798005,10.96389,1824.2,1823.9,2.28985224]
[1743271798407,10.96389,1824.2,1823.9,0.67072966]
[1743271798607,3.66698625,1824.3,1823.1,1.5643]
[1743271798608,0.2073,1824.0,1823.1,1.5643]
[1743271798828,5.48559,1823.0,1822.8,1.5643]
[1743271799002,5.48565,1823.0,1822.6,1.5643]
[1743271799199,9.15227625,1823.1,1822.6,7.0508]
[1743271799398,9.15227625,1823.1,1822.7,0.70508]
[1743271799399,5.48606,1822.8,1822.7,0.70508]
[1743271799599,5.48585,1822.9,1822.5,6.215]
[1743271799842,3.66698625,1823.1,1822.7,5.48612]
[1743271800021,9.15173625,1823.3,1822.8,1.4975]
[1743271800345,9.15173625,1823.3,1822.8,6.98351]
[1743271800346,5.48487,1823.2,1822.8,6.98351]
[1743271800633,10.96996,1823.2,1822.8,1.4975]
[1743271800796,5.48528,1823.1,1822.8,1.4975]
[1743271800999,5.48562,1823.0,1822.8,2.817378]
[1743271802332,9.15226625,1823.1,1822.8,1.4975]
[1743271802583,5.48547,1823.0,1822.8,1.4975]
[1743271803071,5.48636,1822.7,1822.6,1.4975]
[1743271803236,5.4863,1822.8,1822.5,6.216]
[1743271803665,5.4863,1822.8,1822.4,1.4975]
[1743271803863,5.48649,1822.7,1822.4,1.4975]
[1743271804053,5.48649,1822.7,1822.4,8.41199]
[1743271804259,5.48649,1822.7,1822.2,6.98524]
[1743271804260,3.66698625,1822.7,1822.2,6.98524]
[1743271804458,9.15354625,1822.7,1822.3,5.54229881]
[1743271804632,3.66698625,1822.7,1822.3,5.54229881]
[1743271804833,9.15355625,1822.7,1822.3,0.05486881]
[1743271805058,9.15355625,1822.7,1822.2,1.4975]
[1743271805059,5.48724,1822.5,1822.2,1.4975]
[1743271805376,5.48683,1822.6,1822.2,8.305265]
[1743271805530,5.48683,1822.6,1822.2,2.817655]
[1743271805736,5.48711,1822.5,1822.2,2.817655]
[1743271805960,5.48728,1822.4,1822.2,1.4975]
[1743271806131,9.15409625,1822.5,1821.9,1.5061]
[1743271806132,3.66698625,1822.5,1821.9,1.5061]
[1743271806336,5.48745,1822.4,1822.0,5.54309221]
[1743271806575,5.48758,1822.3,1822.0,5.54309221]
[1743271806736,3.66698625,1822.5,1822.1,5.48796]
[1743271807047,3.66698625,1822.5,1822.2,5.48762]
[1743271807465,9.15405625,1822.5,1822.1,5.48811]
[1743271807957,14.64123625,1822.5,1822.1,5.48811]
[1743271808160,5.4873,1822.4,1822.0,6.81489922]
[1743271808359,3.66698625,1822.5,1822.0,1.32651922]
[1743271808560,5.48749,1822.4,1822.0,6.81496922]
[1743271808754,5.48749,1822.4,1822.0,13.03196922]
[1743271808955,3.87428625,1822.7,1822.1,1.35807025]
[1743271809152,3.66698625,1822.9,1822.2,1.5061]
[1743271809351,3.66698625,1822.7,1822.3,5.48753]
[1743271809552,3.66698625,1822.7,1822.2,6.99395]
[1743271809758,5.48686,1822.6,1822.2,6.99395]
[1743271810073,3.66698625,1822.5,1822.2,6.99395]
[1743271810265,5.48686,1822.6,1822.2,8.42734962]
[1743271810646,5.48686,1822.6,1822.2,8.37247869]
[1743271811236,10.97374,1822.6,1822.2,8.37247869]
[1743271811640,5.48686,1822.6,1822.2,8.37247869]
[1743271811963,10.97373,1822.6,1822.2,8.37247869]
[1743271813031,5.48697,1822.5,1822.2,6.99395]
[1743271813236,9.15395625,1822.5,1822.1,6.79132692]
[1743271813565,9.15395625,1822.5,1822.2,5.48786]
[1743271814068,14.84738625,1822.7,1822.3,5.48727]
[1743271814446,9.36069625,1822.7,1822.3,5.48727]
[1743271814767,0.2073,1822.9,1822.5,5.48696]
[1743271815072,3.87428625,1823.1,1822.4,1.5061]
[1743271815243,3.87428625,1823.6,1822.9,5.48576]
[1743271815433,3.87428625,1823.6,1823.3,5.48437]
[1743271815637,3.87428625,1823.6,1823.2,1.5061]
[1743271815946,3.87428625,1823.6,1823.3,5.48438]
[1743271816264,5.4835,1823.7,1823.3,5.48442]
[1743271816472,9.15005625,1823.8,1823.4,5.48416]
[1743271816687,3.0,1823.7,1823.5,5.4838]
[1743271816979,9.15004625,1823.8,1823.5,5.4838]
[1743271817179,9.15004625,1823.8,1823.4,5.48417]
[1743271817378,3.0,1823.7,1823.4,5.48417]
[1743271817595,3.0,1823.7,1823.4,6.581028]
[1743271817948,3.0,1823.7,1823.4,12.065118]
[1743271818454,3.2073,1823.9,1823.5,5.53875377]
[1743271818643,3.2073,1823.9,1823.6,5.48343]
[1743271819044,3.2073,1823.9,1823.7,5.48323]
[1743271819362,5.48291,1823.9,1823.6,1.4705]
[1743271819569,5.48291,1823.9,1823.6,6.95415]
[1743271819570,3.0,1823.9,1823.6,6.95415]
[1743271819749,3.0,1823.9,1823.7,5.48335]
[1743271820447,3.66698625,1824.0,1823.7,5.48335]
[1743271820845,10.96671,1823.7,1823.4,14.373028]
[1743271821046,10.967,1823.7,1823.4,1.096858]
[1743271821245,3.66698625,1823.6,1823.2,1.5762]
[1743271821554,5.48377,1823.6,1823.2,1.5762]
[1743271821754,9.15036625,1823.7,1823.3,5.48433]
[1743271821955,5.4839,1823.6,1823.1,11.70114]
[1743271822157,5.4839,1823.6,1823.1,13.028874]
[1743271822349,5.48406,1823.5,1823.1,18.513824]
[1743271822550,5.48406,1823.5,1823.1,13.028684]
[1743271822760,5.48427,1823.4,1823.1,11.70095]
[1743271823278,5.48426,1823.4,1823.1,6.216]
[1743271823780,5.48426,1823.4,1822.7,5.4863]
[1743271823781,5.48486,1823.2,1822.7,1.5762]
[1743271823947,5.48565,1823.0,1822.7,6.214]
[1743271824147,5.48592,1822.9,1822.7,6.214]
[1743271824757,8.48552,1823.0,1822.7,6.214]
[1743271825375,5.4859,1822.9,1822.7,6.214]
[1743271825582,5.48606,1822.8,1822.4,13.27746]
[1743271825749,5.48606,1822.8,1822.4,17.6190571]
[1743271826461,5.48606,1822.8,1822.4,23.1061271]
[1743271826977,9.35685625,1822.9,1822.5,5.48693]
[1743271827482,3.66698625,1823.1,1822.5,0.05486335]
[1743271827656,6.66698625,1823.1,1822.8,5.48605]
[1743271827856,3.0,1823.0,1822.8,5.48605]
[1743271828084,8.48574,1823.0,1822.5,1.21866605]
[1743271828252,3.66698625,1822.9,1822.4,12.1317971]
[1743271828682,5.4864,1822.7,1822.4,12.1317971]
[1743271828883,9.15338625,1822.7,1822.3,36.352511]
[1743271829089,9.15338625,1822.7,1822.3,1.097511]
[1743271829292,5.48793,1822.2,1821.8,7.06516]
[1743271829591,9.15430625,1822.4,1822.0,5.48833]
[1743271829887,5.4883,1822.1,1821.8,1.5762]
[1743271830683,5.48848,1822.0,1821.8,1.5762]
[1743271830847,5.48848,1822.0,1821.7,11.70326]
[1743271831052,9.15546625,1822.0,1821.6,10.9791]
[1743271831247,5.48848,1822.0,1821.6,5.4895]
[1743271831673,0.36124155,1821.9,1821.6,5.4895]
[1743271831869,0.36124155,1821.9,1821.8,5.48907]
[1743271832073,0.2041,1822.2,1821.9,5.48863]
[1743271832276,8.48757,1822.3,1821.9,5.4886]
[1743271832483,0.3591617,1822.1,1821.9,5.48858]
[1743271832662,8.48757,1822.3,1821.9,5.48858]
[1743271832854,0.35882031,1822.0,1821.8,5.48906]
[1743271833061,5.48824,1822.1,1821.8,5.48906]
[1743271833257,0.35882031,1821.9,1821.8,5.48906]
[1743271833554,9.15485625,1822.2,1821.8,5.48906]
[1743271833782,0.35882031,1822.1,1821.8,5.48906]
[1743271834079,0.35882031,1822.1,1821.8,10.97793]
[1743271834383,0.35882031,1822.0,1821.8,10.97793]
[1743271834585,0.35882031,1822.0,1821.8,5.48887]
[1743271834878,9.15485625,1822.2,1821.8,5.48887]
[1743271835092,0.35882031,1821.9,1821.8,5.48887]
[1743271835301,5.48894,1821.9,1821.5,7.06616]
[1743271835457,11.33683031,1821.9,1821.5,13.28016]
[1743271835658,5.48908,1821.8,1821.5,7.7902]
[1743271835962,4.52079166,1821.9,1821.6,5.48945]
[1743271836283,0.35852766,1821.7,1821.5,5.48983]
[1743271836482,0.35852766,1821.7,1821.6,5.5445642]
[1743271836686,12.70504625,1822.2,1821.7,5.48915]
[1743271836903,12.15504625,1822.2,1821.8,5.48886]
[1743271837187,12.15504625,1822.2,1821.5,5.48997]
[1743271837188,12.15504625,1822.2,1821.9,5.48872]
[1743271837483,8.45165888,1822.2,1821.7,6.99866]
[1743271837669,5.48856,1822.0,1821.7,5.48926]
[1743271837872,5.48834,1822.1,1821.7,5.48926]
[1743271838055,8.48834,1822.1,1821.7,5.48926]
[1743271838678,8.48834,1822.1,1821.7,10.97851]
[1743271838881,8.48834,1822.1,1821.7,5.48925]
[1743271839084,8.48834,1822.1,1821.4,5.49026]
[1743271839085,5.48921,1821.8,1821.4,5.49026]
[1743271839255,5.48921,1821.8,1821.4,17.19436]
[1743271839462,9.15553625,1822.0,1821.6,5.48939]
[1743271839760,14.64423625,1822.0,1821.6,5.48939]
[1743271840159,9.15553625,1822.0,1821.6,5.48939]
[1743271840379,9.15553625,1822.0,1821.6,10.97889]
[1743271840577,9.35836625,1822.4,1821.7,1.5094]
[1743271840774,9.35836625,1822.4,1822.0,5.4883]
[1743271840775,0.2041,1822.4,1822.0,5.4883]
[1743271840979,3.66698625,1822.6,1822.1,5.4881]
[1743271841278,7.10495629,1823.1,1822.1,5.4881]
[1743271841279,0.2041,1823.2,1822.9,5.48561]
[1743271841493,5.68923,1823.2,1822.7,5.48629]
[1743271841793,8.48529,1823.1,1822.7,5.48629]
[1743271842288,5.48516,1823.1,1822.6,7.7244]
[1743271842486,5.48559,1823.0,1822.6,7.7244]
[1743271842695,10.9713,1823.0,1822.6,6.99594]
[1743271842995,5.4861,1822.8,1822.5,6.215]
[1743271844278,5.48638,1822.7,1822.5,6.215]
[1743271845167,5.48666,1822.6,1822.2,11.70185]
[1743271845362,5.48644,1822.7,1822.3,5.48742]
[1743271845580,8.69019,1822.8,1822.3,5.48757]
[1743271845894,5.48639,1822.7,1822.3,5.48757]
[1743271846058,5.48639,1822.7,1822.3,5.48735]
[1743271846495,8.69019,1822.8,1822.3,5.48735]
[1743271846974,0.30302346,1822.7,1822.4,5.48724]
[1743271847369,0.30302346,1822.7,1822.5,5.48694]
[1743271847569,0.30302346,1822.7,1822.6,5.48666]
[1743271847965,5.68957,1823.0,1822.6,5.48666]
[1743271848169,0.30302346,1822.7,1822.6,5.48666]
[1743271848367,5.68957,1823.0,1822.6,5.48666]
[1743271848681,0.30302346,1822.7,1822.6,5.48666]
[1743271848868,5.68957,1823.0,1822.6,5.48666]
[1743271849065,0.30302346,1822.7,1822.6,5.48666]
[1743271849265,5.68957,1823.0,1822.6,5.48666]
[1743271849467,0.30302346,1822.7,1822.6,5.48666]
[1743271849693,5.68957,1823.0,1822.6,10.97313]
[1743271849995,3.0,1823.0,1822.7,5.48628]
[1743271850191,0.30302346,1822.9,1822.7,5.48628]
[1743271850399,0.30302346,1822.9,1822.6,5.48654]
[1743271850896,0.30302346,1822.9,1822.4,5.48719]
[1743271851063,5.48647,1822.7,1822.3,7.0313]
[1743271851270,10.97305,1822.7,1822.3,7.0313]
[1743271851492,0.30302346,1822.6,1822.3,7.0313]
[1743271851693,0.30302346,1822.6,1822.3,12.51868]
[1743271851875,5.48647,1822.7,1822.3,12.51868]
[1743271852077,0.30390636,1822.5,1822.3,5.48738]
[1743271852300,10.27115325,1822.7,1822.3,5.48737]
[1743271852470,0.30390636,1822.4,1822.3,5.48737]
[1743271852795,3.66698625,1822.7,1822.4,5.48715]
[1743271852996,10.63798088,1822.7,1822.3,5.48757]
[1743271853180,0.30390636,1822.6,1822.3,5.48757]
[1743271853570,10.63798088,1822.7,1822.3,5.48757]
[1743271853770,0.30390636,1822.5,1822.3,5.48757]
[1743271853997,5.15143088,1822.7,1822.2,11.70085]
[1743271854195,5.69272,1822.3,1821.9,1.5439]
[1743271854400,5.48811,1822.2,1821.7,18.73442]
[1743271854668,5.79393059,1822.2,1821.8,5.48897]
[1743271855169,5.79393059,1822.2,1821.7,13.24524]
[1743271855170,5.79392059,1822.2,1821.7,12.52245]
[1743271855369,9.15528625,1822.1,1821.6,6.211]
[1743271855586,9.15528625,1822.1,1821.7,5.48922]
[1743271856110,5.79444059,1822.0,1821.6,5.48952]
[1743271856289,0.30582059,1822.0,1821.6,5.48967]
[1743271856671,0.30582059,1822.0,1821.7,5.48924]
[1743271857100,0.30582059,1822.0,1821.7,5.4892]
[1743271857622,0.30582059,1822.0,1821.7,10.97845]
[1743271857809,0.30582059,1822.0,1821.7,5.4892]
[1743271858021,0.30582059,1822.0,1821.9,5.48877]
[1743271858173,0.30582059,1822.0,1821.9,7.03267]
[1743271858482,0.205,1822.6,1821.9,7.03267]
[1743271858483,0.205,1822.8,1822.4,5.48702]
[1743271858811,5.73563857,1822.7,1822.4,5.48702]
[1743271859104,0.24920857,1822.7,1822.5,5.48683]
[1743271859277,0.24920857,1822.7,1822.5,5.48678]
[1743271859598,0.24920857,1822.7,1822.6,5.48666]
[1743271859771,0.24920857,1822.7,1822.5,5.48678]
[1743271860192,0.24920857,1822.7,1822.5,10.97359]
[1743271860398,0.24920857,1822.7,1822.6,5.48666]
[1743271860572,0.24920857,1822.7,1822.6,6.63887138]
[1743271860888,5.48546,1823.0,1822.6,6.584004]
[1743271861089,5.48577,1822.9,1822.6,5.48647]
[1743271861301,6.03653,1822.7,1822.2,5.48763]
[1743271861475,8.48666,1822.6,1822.2,5.48763]
[1743271861913,5.69248,1822.4,1821.9,11.69958]
[1743271862089,0.205,1822.4,1821.9,6.211]
[1743271862274,5.69252,1822.4,1822.0,6.10943]
[1743271862474,0.25245649,1822.3,1822.1,5.48796]
[1743271862783,0.205,1822.4,1822.1,5.48796]
[1743271863089,0.25245649,1822.2,1822.1,5.48796]
[1743271863403,6.92855549,1822.2,1821.8,5.48888]
[1743271863577,6.03769,1822.3,1821.8,5.48903]
[1743271863901,6.03769,1822.3,1821.7,5.48917]
[1743271863902,3.25245649,1822.1,1821.7,5.48917]
[1743271864206,3.45745649,1822.0,1821.6,5.48945]
[1743271864503,0.25245649,1822.0,1821.9,5.48877]
[1743271864674,0.25245649,1822.0,1821.9,6.740934]
[1743271864870,3.0,1822.5,1822.2,5.48762]
[1743271865177,0.23141845,1822.4,1822.2,5.48762]
[1743271865501,0.23141845,1822.4,1822.0,5.48818]
[1743271865703,5.48748,1822.4,1822.0,5.48818]
[1743271865911,0.23141845,1822.3,1822.0,5.48818]
[1743271866200,12.072435,1822.4,1822.0,5.48818]
[1743271866403,0.23141845,1822.2,1822.0,5.48818]
[1743271866575,12.072305,1822.4,1822.0,5.48818]
[1743271866778,0.23141845,1822.3,1822.0,5.48818]
[1743271866972,5.48779,1822.3,1821.9,11.69874]
[1743271867175,0.23141845,1822.2,1822.1,5.48803]
[1743271867375,3.66698625,1822.4,1822.1,5.48803]
[1743271867699,0.23141845,1822.3,1822.1,5.48803]
[1743271868104,3.0,1822.4,1822.1,5.48803]
[1743271868304,0.23141845,1822.2,1822.1,5.48803]
[1743271868513,3.0,1822.5,1822.1,6.585649]
[1743271868719,5.48756,1822.4,1822.0,5.48831]
[1743271868877,5.71897845,1822.4,1822.0,5.48831]
[1743271869488,0.23141845,1822.4,1822.0,5.48827]
[1743271869679,0.23141845,1822.4,1822.1,5.48807]
[1743271869881,0.23141845,1822.4,1822.1,5.48806]
[1743271870217,5.71880845,1822.4,1822.0,5.48846]
[1743271870507,5.71880845,1822.4,1822.0,10.9768]
[1743271870705,5.71880845,1822.4,1822.0,5.48834]
[1743271870915,5.71869845,1822.4,1821.9,17.18738]
[1743271871119,5.48787,1822.2,1821.8,7.03285]
[1743271871279,5.48847,1822.0,1821.5,1.5973]
[1743271871479,3.66698625,1821.8,1821.2,7.08805]
[1743271871679,0.55,1821.7,1821.1,5.49115]
[1743271871922,5.48971,1821.6,1821.2,5.49073]
[1743271872205,6.47604694,1821.5,1821.1,10.98217]
[1743271872378,0.43592694,1821.5,1821.3,5.49057]
[1743271872583,0.43592694,1821.5,1821.1,5.49118]
[1743271872584,5.92592694,1821.5,1821.2,5.49077]
[1743271872780,0.43592694,1821.5,1821.2,5.49077]
[1743271873105,0.43592694,1821.5,1821.3,5.49046]
[1743271873314,1.19121826,1821.5,1821.0,7.8063]
[1743271873488,5.49082,1821.3,1820.9,5.49168]
[1743271873815,5.71764261,1821.2,1820.8,5.4918]
[1743271874180,5.49118,1821.1,1820.7,7.08966]
[1743271874387,0.22669261,1821.2,1820.7,7.08966]
[1743271874388,9.70786625,1821.2,1820.7,5.49209]
[1743271874578,0.22600292,1821.0,1820.8,5.49208]
[1743271874814,0.22600292,1821.0,1820.9,5.49178]
[1743271874998,0.22600292,1821.0,1820.6,10.98515]
[1743271875183,0.22600292,1821.0,1820.7,5.49235]
[1743271875694,0.22600292,1821.0,1820.7,5.49228]
[1743271876103,0.22600292,1821.0,1820.7,10.98453]
[1743271876315,0.22600292,1821.0,1820.8,5.49196]
[1743271876512,0.22600292,1821.0,1820.7,5.49225]
[1743271876702,5.49118,1821.1,1820.7,10.9845]
[1743271876905,0.22600292,1820.9,1820.7,10.9845]
[1743271877097,9.15788625,1821.2,1820.8,5.49207]
[1743271877303,10.5113987,1821.2,1820.8,5.49207]
[1743271877713,5.0204987,1821.2,1820.9,5.49167]
[1743271877913,0.96733617,1821.3,1821.0,5.49136]
[1743271878130,3.0,1821.2,1820.9,5.49167]
[1743271879637,9.15670625,1821.6,1821.2,5.49076]
[1743271879921,11.18465,1821.6,1821.2,5.49076]
[1743271880219,5.69472,1821.6,1821.2,5.49076]
[1743271880517,5.69472,1821.6,1821.0,5.49131]
[1743271880518,5.48998,1821.5,1821.1,5.49106]
[1743271880711,5.49033,1821.4,1820.9,5.49158]
[1743271881024,0.55,1821.5,1821.1,5.4909]
[1743271881188,0.55,1821.5,1821.2,5.49077]